bitfinex/quotes_ETHUSD_20220117
["timestamp","ask_amount","ask_price","bid_price","bid_amount"]
[1642436026828,0.00113685,3215.7,3215.5,1.55437]
[1642436027229,0.00113685,3215.7,3215.6,0.3]
[1642436028877,10.45510945,3217.2,3216.2,0.77705]
[1642436029080,10.45510945,3217.2,3216.3,0.77703]
[1642436029277,1.1189049,3216.5,3216.4,1.28517123]
[1642436029578,1.12345229,3216.5,3216.4,1.28517123]
[1642436030182,0.00454739,3216.5,3216.4,1.28517123]
[1642436031481,0.00454739,3216.5,3216.4,1.58517123]
[1642436031681,0.00454739,3216.5,3216.4,2.36210123]
[1642436031881,0.00454739,3216.5,3216.4,2.06210123]
[1642436032732,0.00454739,3216.5,3216.4,1.28517123]
[1642436033128,4.26824739,3217.2,3216.4,1.28517123]
[1642436033329,4.26824739,3217.2,3216.4,2.06217123]
[1642436033530,0.00341054,3217.1,3216.5,0.77699]
[1642436033733,0.03275682,3217.0,3215.6,0.373]
[1642436033931,1.25950193,3215.9,3215.5,1.55439]
[1642436034134,0.00227369,3216.9,3215.8,0.00397897]
[1642436034333,0.00227369,3216.9,3216.0,0.77711]
[1642436034533,4.26824739,3217.2,3216.0,0.77711]
[1642436034534,0.00170527,3216.8,3216.0,0.77711]
[1642436034730,4.21995266,3217.2,3216.1,0.0022737]
[1642436035131,1.39120378,3216.4,3216.1,0.00397897]
[1642436035786,0.00170527,3217.1,3216.1,0.00397897]
[1642436036176,0.00113685,3217.0,3216.1,0.78103897]
[1642436036377,0.00113685,3217.0,3216.2,1.55405]
[1642436036576,0.00113685,3217.0,3216.3,0.02614377]
[1642436036778,0.00113685,3217.0,3216.4,0.373]
[1642436036976,0.00113685,3217.0,3216.6,0.56690709]
[1642436037178,0.00113685,3217.0,3216.9,2.08694624]
[1642436039080,0.00113685,3217.0,3216.9,3.08694624]
[1642436040737,0.00113685,3217.0,3216.9,2.08694624]
[1642436041142,0.00113685,3217.0,3216.9,0.56690709]
[1642436041939,1.38446164,3217.0,3216.9,0.56690709]
[1642436042339,0.00556837,3216.8,3216.5,0.00170527]
[1642436042539,5.3,3216.9,3216.5,0.00170527]
[1642436042739,1.38446164,3217.0,3215.9,0.00511581]
[1642436042941,1.38446164,3217.0,3215.8,0.00568424]
[1642436043403,1.38446164,3217.0,3215.9,0.77715]
[1642436043801,1.38446164,3217.0,3216.0,0.00454739]
[1642436044402,1.38446164,3217.0,3216.2,0.77706]
[1642436044600,1.38446164,3217.0,3216.3,0.00687874]
[1642436044802,1.12909642,3216.5,3216.3,0.00284212]
[1642436045001,1.12909642,3216.5,3216.4,0.00227369]
[1642436045203,1.12909642,3216.5,3216.3,0.00284212]
[1642436046406,1.13853541,3216.5,3216.2,0.00341054]
[1642436046605,1.12909642,3216.5,3215.3,0.78580635]
[1642436046805,1.25633099,3215.6,3215.4,0.00795793]
[1642436047529,1.25633099,3215.6,3214.7,0.01193689]
[1642436047728,0.00826949,3215.5,3214.7,0.01193689]
[1642436048336,3.49493503,3215.5,3214.7,0.01193689]
[1642436048540,1.26720112,3215.0,3214.7,0.01193689]
[1642436048737,3.16780241,3214.9,3214.7,0.01193689]
[1642436048936,3.16780241,3214.9,3214.3,0.01421059]
[1642436049235,3.16780241,3214.9,3213.5,0.79647798]
[1642436049435,1.26720112,3215.0,3213.5,0.79647798]
[1642436049637,1.27517178,3214.3,3213.6,0.03053598]
[1642436049834,1.27517178,3214.3,3214.0,1.2582059]
[1642436050037,1.27517178,3214.3,3213.7,0.01762113]
[1642436050236,1.27517178,3214.3,3214.1,0.01534743]
[1642436050540,1.27517178,3214.3,3213.6,0.01818955]
[1642436050983,1.40152961,3214.2,3213.6,0.01818955]
[1642436051186,1.34889464,3213.7,3213.4,0.0193264]
[1642436051683,2.17329464,3213.7,3213.4,0.0193264]
[1642436052084,2.17329464,3213.7,3213.1,0.02103167]
[1642436052481,2.17329464,3213.7,3212.7,1.55377216]
[1642436052683,1.34098574,3213.1,3212.8,1.4378672]
[1642436052883,1.34098574,3213.1,3212.8,0.00170527]
[1642436053388,1.34098574,3213.1,3212.7,0.00227369]
[1642436053796,1.34098574,3213.1,3212.3,0.778]
[1642436053797,1.21090906,3212.5,3212.4,0.00397896]
[1642436053987,0.44915691,3213.2,3212.4,0.00397896]
[1642436053988,0.4371,3213.2,3212.4,0.00397896]
[1642436054188,0.7984,3212.7,3212.4,0.00397896]
[1642436056440,0.7984,3212.7,3212.4,1.30951139]
[1642436056736,0.7984,3212.7,3212.5,0.00341054]
[1642436056938,0.7984,3212.7,3212.5,0.01385219]
[1642436057337,0.7984,3212.7,3212.6,0.00284212]
[1642436057644,0.7984,3212.7,3212.5,0.00341054]
[1642436058500,0.00284212,3213.6,3212.5,0.00341054]
[1642436058501,0.00284212,3213.6,3212.5,0.30341054]
[1642436058700,0.00284212,3213.6,3212.6,0.00833556]
[1642436058900,0.00227369,3213.5,3212.6,0.00284212]
[1642436059106,0.00227369,3213.5,3212.8,0.77785]
[1642436059302,3.6427,3215.3,3212.8,0.77785]
[1642436059303,0.00170527,3213.4,3213.0,1.26302841]
[1642436059500,0.00170527,3213.4,3213.0,1.53732848]
[1642436059699,0.01232611,3215.1,3213.0,1.53732848]
[1642436059700,0.00113685,3213.3,3213.0,1.83732848]
[1642436059899,0.00113685,3213.3,3213.0,1.53732848]
[1642436060103,0.7875132,3214.8,3213.0,2.74276848]
[1642436060301,0.01206506,3214.3,3213.0,2.74276848]
[1642436060502,1.16529385,3213.8,3213.0,2.74276848]
[1642436060900,0.00341054,3213.7,3213.0,2.74276848]
[1642436061303,0.00284212,3213.6,3213.0,2.74276848]
[1642436061504,0.00284212,3213.6,3212.9,0.00113685]
[1642436061710,0.01694039,3213.5,3212.9,0.00113685]
[1642436061907,0.01694039,3213.5,3212.7,0.00227369]
[1642436062175,0.00170527,3213.4,3212.5,0.00341054]
[1642436062363,0.01765437,3213.3,3212.4,0.00397896]
[1642436062566,1.19725658,3212.7,3212.4,0.00397896]
[1642436063267,0.02170299,3212.6,3212.4,0.00397896]
[1642436063569,1.19725658,3212.7,3212.4,0.00397896]
[1642436064472,1.19725658,3212.7,3212.4,7.896e-05]
[1642436064473,1.19067262,3212.6,3212.4,7.896e-05]
[1642436064673,2.68020002,3212.6,3212.4,7.896e-05]
[1642436064871,21.45697,3212.5,3212.4,7.896e-05]
[1642436065071,21.82997,3212.5,3212.4,7.896e-05]
[1642436065267,21.82997,3212.5,3210.5,0.85103632]
[1642436065268,0.02673726,3212.3,3210.5,0.85103632]
[1642436065467,0.02709049,3212.2,3210.3,0.7785]
[1642436065669,1.43159297,3211.7,3210.6,0.01023163]
[1642436065888,2.32429297,3211.7,3210.6,0.01023163]
[1642436066287,0.8927,3211.7,3210.6,0.01023163]
[1642436066490,0.02709049,3212.2,3210.6,0.01023163]
[1642436066692,0.02709049,3212.2,3210.7,0.07598028]
[1642436066889,0.02709049,3212.2,3210.9,0.01209473]
[1642436067094,0.02709049,3212.2,3210.9,1.56858473]
[1642436067293,5.9607,3212.4,3212.2,0.01720514]
[1642436067496,5.9607,3212.4,3212.1,1.48985965]
[1642436067695,1.55457657,3212.6,3212.1,1.48985965]
[1642436067895,1.55457657,3212.6,3212.2,0.00113685]
[1642436068497,1.55457657,3212.6,3211.5,1.56133581]
[1642436068702,0.00105788,3212.6,3211.6,0.78267739]
[1642436068896,0.00105788,3212.6,3211.6,0.00454739]
[1642436069097,0.00105788,3212.6,3211.7,0.00397897]
[1642436069298,1.13072197,3212.6,3211.7,1.21898022]
[1642436069530,1.13072197,3212.6,3211.2,0.00682109]
[1642436069734,1.32823797,3211.9,3211.8,0.00341054]
[1642436069929,1.13072197,3212.6,3211.0,1.92933]
[1642436069930,0.00105788,3212.6,3211.1,0.00738951]
[1642436070333,0.00105788,3212.6,3211.2,0.77826]
[1642436070741,0.00105788,3212.6,3211.7,0.01255605]
[1642436070937,6.2051,3213.7,3211.8,17.36858567]
[1642436071140,3.8945,3213.6,3213.1,0.02004297]
[1642436071338,0.00235266,3213.0,3212.9,0.00606275]
[1642436071535,0.00235266,3213.0,3212.7,0.373]
[1642436071738,0.00235266,3213.0,3211.9,0.0039]
[1642436071936,0.00178423,3212.9,3211.9,0.0039]
[1642436072338,0.00121581,3212.8,3211.5,0.00617369]
[1642436072535,0.00121581,3212.8,3211.5,0.78434369]
[1642436072738,1.22824232,3213.3,3211.5,1.56254369]
[1642436072935,1.22824232,3213.3,3211.6,0.00560527]
[1642436073137,0.0034895,3213.2,3211.6,0.00560527]
[1642436073587,0.00292108,3213.1,3212.2,1.33393223]
[1642436073787,0.00292108,3213.1,3211.5,0.00617369]
[1642436073788,1.19195656,3212.8,3212.3,0.02549126]
[1642436073985,0.0034895,3213.2,3212.3,0.00162631]
[1642436074188,0.0034895,3213.2,3212.4,0.00105788]
[1642436074588,0.00292108,3213.1,3212.1,0.00276315]
[1642436074787,0.00292108,3213.1,3212.2,1.12484366]
[1642436074994,0.00519477,3213.5,3212.2,1.12264893]
[1642436075192,0.00519477,3213.5,3212.3,0.03720121]
[1642436075387,1.38918012,3213.1,3212.3,0.00162631]
[1642436075588,1.38918012,3213.1,3212.4,0.00105788]
[1642436075786,1.38918012,3213.1,3212.3,0.00162631]
[1642436076788,0.00519477,3213.5,3212.7,1.15518039]
[1642436077036,0.00519477,3213.5,3212.8,0.03786107]
[1642436077239,0.00462635,3213.4,3212.7,1.15518039]
[1642436077640,0.00405793,3213.3,3212.7,1.15518039]
[1642436078038,1.53419574,3213.1,3212.7,2.71090039]
[1642436078639,0.0034895,3213.2,3212.8,0.00808798]
[1642436078838,0.0034895,3213.2,3212.7,1.93311039]
[1642436079139,0.00292108,3213.1,3212.7,1.15518039]
[1642436079539,1.20008863,3213.5,3212.7,1.15518039]
[1642436079939,0.00462635,3213.4,3212.7,1.15518039]
[1642436080341,0.00405793,3213.3,3212.8,0.77788]
[1642436080986,0.0034895,3213.2,3212.4,1.55575]
[1642436081386,0.00292108,3213.1,3212.4,1.55575]
[1642436081586,0.00292108,3213.1,3212.3,0.00162631]
[1642436081787,0.01958611,3213.0,3212.3,0.00162631]
[1642436081987,1.15801836,3212.8,3212.3,0.00162631]
[1642436082186,1.15801836,3212.8,3211.8,0.00446842]
[1642436082385,1.47615231,3212.1,3211.8,0.00446842]
[1642436083190,1.47615231,3212.1,3211.7,0.00503685]
[1642436083391,1.47615231,3212.1,3211.4,0.00674212]
[1642436084191,1.47615231,3212.1,3211.3,2.10080818]
[1642436084392,1.47615231,3212.1,3211.4,0.00674212]
[1642436084629,3.9076,3212.5,3211.4,0.00674212]
[1642436084831,3.40519234,3213.2,3211.5,1.56314505]
[1642436085032,6.2051,3213.7,3211.9,0.7781]
[1642436085033,4.1166,3213.1,3211.9,0.7781]
[1642436085230,0.00121581,3212.8,3211.9,0.7781]
[1642436085435,0.00121581,3212.8,3212.0,0.00333158]
[1642436085632,1.20600931,3212.6,3212.2,1.44189792]
[1642436085932,0.00121581,3212.8,3212.3,0.00162631]
[1642436086131,0.00121581,3212.8,3212.4,0.77802]
[1642436086531,0.00121581,3212.8,3212.4,1.55601]
[1642436086933,1.36677128,3212.8,3212.4,1.55601]
[1642436087135,0.00121581,3212.8,3212.4,1.55601]
[1642436087335,0.00121581,3212.8,3212.3,0.00162631]
[1642436087734,0.00121581,3212.8,3212.4,0.77802]
[1642436088139,1.45899403,3212.8,3212.1,0.00276315]
[1642436088585,0.00121581,3212.8,3212.1,0.00276315]
[1642436088983,0.00121581,3212.8,3212.1,1.1293023]
[1642436089389,0.00121581,3212.8,3212.2,0.78022473]
[1642436089583,0.00121581,3212.8,3212.2,0.00219473]
[1642436089786,0.00121581,3212.8,3212.3,0.00162631]
[1642436089985,0.00121581,3212.8,3212.2,0.00219473]
[1642436090489,0.00121581,3212.8,3212.6,1.45954202]
[1642436093043,0.00121581,3212.8,3212.6,1.75954202]
[1642436093239,0.00121581,3212.8,3212.7,0.77787]
[1642436093441,0.00121581,3212.8,3212.7,6.57787]
[1642436093641,9.7905,3214.4,3213.1,1.55541]
[1642436094141,14.20075557,3214.4,3213.7,1.28590274]
[1642436094340,11.18107121,3214.4,3213.7,1.28590274]
[1642436094541,5.45717121,3214.4,3213.7,1.28590274]
[1642436095143,2.66070108,3214.3,3213.7,1.28590274]
[1642436095344,2.66070108,3214.3,3213.1,3.11086]
[1642436095548,0.00795793,3214.2,3213.3,0.70002]
[1642436095981,0.00738951,3214.1,3213.3,0.70002]
[1642436096381,0.00682108,3214.0,3213.8,1.36876357]
[1642436096787,2.66070108,3214.3,3213.8,2.36867357]
[1642436096788,0.00625266,3213.9,3213.8,2.36867357]
[1642436097189,0.00625266,3213.9,3213.8,1.36876357]
[1642436097389,0.00625266,3213.9,3212.9,0.373]
[1642436097589,0.02415827,3213.8,3212.9,0.373]
[1642436097788,0.02984251,3213.8,3212.9,0.373]
[1642436097987,0.00511581,3213.7,3212.9,0.373]
[1642436098196,0.00511581,3213.7,3213.3,1.5554]
[1642436098389,0.00454739,3213.6,3213.5,1.32468157]
[1642436098789,0.00454739,3213.6,3213.5,2.10237157]
[1642436100035,0.00454739,3213.6,3213.5,3.70237157]
[1642436100234,4.0666,3214.4,3213.5,2.92468157]
[1642436100433,4.0666,3214.4,3213.8,0.77752]
[1642436100635,0.00397896,3214.3,3213.8,1.07752]
[1642436100839,0.00397896,3214.3,3214.0,1.34420263]
[1642436101034,0.00341054,3214.2,3214.0,1.34420263]
[1642436101534,0.00284212,3214.1,3214.0,2.12180263]
[1642436101732,0.00284212,3214.1,3214.0,2.42180263]
[1642436101934,0.00284212,3214.1,3214.0,1.87662404]
[1642436103134,0.00284212,3214.1,3214.0,2.17662404]
[1642436103388,0.00284212,3214.1,3214.0,1.87662404]
[1642436103586,0.00284212,3214.1,3214.0,2.17662404]
[1642436104284,0.00284212,3214.1,3214.0,1.87662404]
[1642436104483,0.00284212,3214.1,3214.0,2.17662404]
[1642436104985,0.00284212,3214.1,3214.0,1.09902404]
[1642436105187,0.00284212,3214.1,3213.5,1.55527]
[1642436105386,0.00284212,3214.1,3212.9,1.183]
[1642436105387,0.02067832,3214.0,3212.9,1.183]
[1642436105587,0.02295201,3214.0,3212.9,1.183]
[1642436105784,0.00170527,3213.9,3213.0,0.00341054]
[1642436105993,1.16350291,3213.8,3213.0,0.00341054]
[1642436106186,1.16350291,3213.8,3213.2,1.16497015]
[1642436106187,1.16463976,3213.8,3213.2,1.16497015]
[1642436106587,1.16463976,3213.8,3213.3,0.00170527]
[1642436106787,7.25247364,3213.7,3213.3,0.00170527]
[1642436107037,0.00958889,3213.6,3212.7,0.00511581]
[1642436107241,0.00958889,3213.6,3212.2,0.00795793]
[1642436107242,3.22994948,3213.6,3212.2,0.00795793]
[1642436107440,1.30277818,3213.1,3212.5,1.41554253]
[1642436107643,4.0688,3213.7,3212.7,0.77796]
[1642436108043,4.0688,3213.7,3212.8,0.00454739]
[1642436109545,0.9793822,3213.2,3212.8,0.00454739]
[1642436109746,0.03033647,3213.1,3212.6,0.00568424]
[1642436110149,0.9793822,3213.2,3212.6,0.00568424]
[1642436110446,0.9793822,3213.2,3212.5,0.00625266]
[1642436110648,0.03484973,3213.1,3212.2,0.00795793]
[1642436110929,0.03484973,3213.1,3211.6,0.0652]
[1642436110930,0.02561308,3212.9,3212.0,0.00909478]
[1642436111124,0.02561308,3212.9,3211.7,0.01080005]
[1642436111125,1.35764016,3212.2,3211.7,0.01080005]
[1642436111323,0.00490707,3212.1,3211.7,0.01080005]
[1642436111518,1.35764016,3212.2,3211.7,0.01080005]
[1642436112621,3.84097487,3212.1,3211.7,0.01080005]
[1642436113020,3.8275,3212.1,3211.7,0.01080005]
[1642436113225,1.35676002,3212.0,3211.7,0.01080005]
[1642436113828,7.2,3211.9,3211.6,0.02600005]
[1642436114023,1.48500926,3211.0,3210.6,1.55671]
[1642436114421,1.48500926,3211.0,3210.0,0.001]
[1642436114422,0.01067587,3210.9,3210.7,0.00568423]
[1642436114837,0.01067587,3210.9,3210.0,0.001]
[1642436114838,0.4896911,3210.7,3210.1,0.00909477]
[1642436115042,1.46388643,3210.4,3210.1,0.00909477]
[1642436115242,0.4896911,3210.7,3210.1,0.00909477]
[1642436116040,0.4896911,3210.7,3210.2,1.34961402]
[1642436116455,0.4896911,3210.7,3210.3,0.00795793]
[1642436116841,0.4896911,3210.7,3210.3,0.63069023]
[1642436117242,0.4896911,3210.7,3210.4,0.0073895]
[1642436117841,0.4896911,3210.7,3210.1,0.00909477]
[1642436118289,1.21473967,3210.3,3210.1,0.00909477]
[1642436118694,1.16995747,3210.3,3210.1,0.00909477]
[1642436118892,4.15980093,3210.3,3210.1,0.00909477]
[1642436119094,12.75,3210.2,3210.1,0.00909477]
[1642436119295,1.53773967,3210.3,3210.1,0.00909477]
[1642436119496,6.3787,3210.3,3210.1,0.00909477]
[1642436119895,0.4896911,3210.2,3210.1,0.00909477]
[1642436120296,0.9793822,3210.2,3210.1,0.00909477]
[1642436120498,0.9793822,3210.2,3210.1,1.1997223]
[1642436121504,0.9793822,3210.2,3210.1,2.23e-05]
[1642436122143,1.52484224,3211.9,3210.2,0.03661737]
[1642436122144,1.40484224,3211.9,3210.2,0.03661737]
[1642436122343,6.0463,3211.8,3211.5,1.52699267]
[1642436122544,1.40484224,3211.9,3211.5,1.52699267]
[1642436122545,1.40370539,3211.9,3211.5,1.52699267]
[1642436122943,0.0096632,3211.8,3211.5,1.91609267]
[1642436123144,0.0096632,3211.8,3211.6,1.55622]
[1642436123345,0.00909477,3211.7,3211.6,1.55622]
[1642436123542,0.00909477,3211.7,3211.6,2.55622]
[1642436123744,1.40370539,3212.6,3211.6,2.55622]
[1642436123745,1.40370539,3212.6,3211.7,8.1]
[1642436123943,1.40370539,3212.6,3211.7,0.373]
[1642436124145,0.00454739,3212.5,3212.1,1.1232607]
[1642436124450,0.00397897,3212.4,3212.2,1.94472]
[1642436124643,0.00397897,3212.4,3212.3,1.32035486]
[1642436124844,10.04486443,3213.7,3212.3,1.32035486]
[1642436125245,0.01080005,3213.6,3212.3,1.32035486]
[1642436125446,2.98277301,3213.6,3212.3,2.09823486]
[1642436125647,0.01597666,3213.5,3212.3,1.32035486]
[1642436125892,0.01023162,3213.5,3212.8,1.41599651]
[1642436126093,0.0096632,3213.4,3212.1,1.55598]
[1642436126292,0.0096632,3213.4,3211.9,0.3]
[1642436126494,0.00909478,3213.3,3212.0,2.33401]
[1642436126694,0.00909478,3213.3,3212.0,2.71961326]
[1642436126894,0.00852635,3213.2,3212.4,0.389]
[1642436127295,0.00795793,3213.1,3212.0,3.0069]
[1642436127496,0.00795793,3213.1,3212.1,0.3]
[1642436127695,0.00795793,3213.1,3212.3,1.27301453]
[1642436127894,0.00738951,3213.0,3212.0,1.15098]
[1642436128097,0.00546336,3212.9,3211.6,0.373]
[1642436128295,0.00682108,3212.9,3211.6,0.373]
[1642436128495,3.30089356,3213.2,3210.8,0.373]
[1642436128496,1.54616211,3212.1,3210.8,0.373]
[1642436128693,1.54616211,3212.1,3210.7,2.33435]
[1642436128896,3.85970527,3212.0,3211.1,1.13619504]
[1642436129294,0.00113685,3211.9,3211.2,0.00284212]
[1642436130359,0.00113685,3211.9,3211.3,0.77825]
[1642436130662,0.00113685,3211.9,3211.4,0.00170527]
[1642436130858,0.00113685,3211.9,3211.4,0.77984527]
[1642436131057,0.00113685,3211.9,3211.4,1.07984527]
[1642436131259,0.00113685,3211.9,3211.5,0.37413684]
[1642436131456,0.00113685,3211.9,3211.6,2.0987698]
[1642436131660,3.8282,3213.6,3212.1,0.6223683]
[1642436131860,3.8282,3213.6,3212.4,0.57684]
[1642436132059,0.00909477,3213.5,3212.4,0.57684]
[1642436132459,0.00852635,3213.4,3213.2,1.23324093]
[1642436132959,0.00795793,3213.3,3213.2,1.23324093]
[1642436133388,0.00795793,3213.3,3213.0,0.38892]
[1642436133591,0.00795793,3213.3,3212.2,1.8558]
[1642436133592,0.02807429,3213.2,3212.2,0.77803]
[1642436133790,0.0073895,3213.2,3212.2,0.77803]
[1642436133988,1.26862598,3213.3,3212.0,2.33353]
[1642436133989,0.00682108,3213.1,3212.0,2.33353]
[1642436134390,1.26862598,3213.3,3212.0,2.33353]
[1642436134391,0.00625266,3213.0,3212.0,2.33353]
[1642436134688,0.00625266,3213.0,3212.4,1.32352963]
[1642436134893,0.00568423,3212.9,3212.4,1.32352963]
[1642436135288,0.00511581,3212.8,3212.5,0.01559361]
[1642436135490,0.00511581,3212.8,3212.4,1.71251963]
[1642436135790,3.8282,3213.6,3212.4,1.71251963]
[1642436135791,0.00454739,3212.7,3212.5,0.77795]
[1642436136288,3.8282,3213.6,3212.5,0.77795]
[1642436136289,0.00397896,3212.6,3212.5,0.77795]
[1642436137236,0.00397896,3212.6,3212.5,2.0002251]
[1642436137440,3.8282,3213.6,3212.9,0.7777]
[1642436137633,3.8282,3213.6,3213.0,0.77772]
[1642436137834,0.00511581,3213.5,3213.0,1.07772]
[1642436138138,0.00511581,3213.5,3213.1,1.41605138]
[1642436138337,0.00454739,3213.4,3213.1,1.41605138]
[1642436138637,3.8282,3213.6,3213.1,1.41605138]
[1642436138638,0.00397897,3213.3,3213.1,2.33823978]
[1642436138837,0.00397897,3213.3,3213.1,2.18823978]
[1642436139037,0.00341054,3213.2,3213.1,4.13257978]
[1642436139238,3.83861054,3214.2,3213.1,3.51039138]
[1642436139640,3.84429478,3214.2,3213.1,3.51039138]
[1642436139838,3.84429478,3214.2,3213.1,3.89928138]
[1642436140046,3.84429478,3214.2,3213.7,1.33521414]
[1642436140241,1.27335708,3214.0,3213.1,2.48323]
[1642436140442,3.84429478,3214.2,3213.1,1.70546]
[1642436140641,0.00397897,3213.9,3213.4,0.77775]
[1642436140886,0.00511582,3214.1,3213.4,0.77775]
[1642436141088,0.00341055,3213.8,3213.3,0.38888]
[1642436141284,3.83861054,3214.2,3213.3,0.38888]
[1642436141285,0.00454739,3214.0,3213.3,0.38888]
[1642436141490,0.00284212,3213.7,3213.3,0.38888]
[1642436141685,0.00397897,3213.9,3213.3,0.38888]
[1642436141886,0.0022737,3213.6,3213.3,0.38888]
[1642436142087,0.00341055,3213.8,3213.4,1.46805706]
[1642436142285,0.00170527,3213.5,3213.1,1.55546]
[1642436142487,3.83861054,3214.2,3212.7,1.55566]
[1642436142488,0.00284212,3213.7,3212.7,1.55566]
[1642436142698,3.32471813,3214.1,3211.8,1.16683]
[1642436142699,0.00113685,3213.4,3211.8,1.16683]
[1642436142887,0.01262037,3213.2,3212.8,0.00227369]
[1642436143094,0.01311705,3213.1,3212.0,0.77809]
[1642436143294,1.26067537,3212.4,3211.8,0.00795792]
[1642436143493,2.96102998,3213.5,3212.1,0.00625265]
[1642436143691,0.00170527,3213.5,3211.8,0.00795792]
[1642436143893,0.00113685,3213.4,3211.9,0.38905]
[1642436144194,0.00170527,3213.5,3212.0,0.78491108]
[1642436144395,2.96273525,3213.5,3212.0,0.00682108]
[1642436144629,1.36593835,3212.6,3212.1,0.00625265]
[1642436144829,1.36593835,3212.6,3212.0,0.00682108]
[1642436144830,0.00434971,3212.5,3212.0,0.00682108]
[1642436145033,0.00434971,3212.5,3211.8,0.00795792]
[1642436145234,1.36593835,3212.6,3211.6,0.00909477]
[1642436145434,1.36593835,3212.6,3211.0,0.01250531]
[1642436145435,3.30840881,3212.5,3211.0,0.01250531]
[1642436145632,0.373,3212.8,3211.8,1.48426674]
[1642436145835,9.7995,3212.9,3211.8,1.48426674]
[1642436146033,9.7995,3212.9,3211.9,0.0073895]
[1642436146235,9.7995,3212.9,3211.9,1.1745695]
[1642436146534,9.7995,3212.9,3212.2,0.77804]
[1642436146835,3.84,3212.9,3212.3,0.00511581]
[1642436147334,3.84,3212.9,3212.4,1.18575949]
[1642436147533,3.84,3212.9,3212.5,0.77797]
[1642436147740,3.84,3212.9,3212.5,0.78194896]
[1642436147935,3.84,3212.9,3212.6,0.00341054]
[1642436148385,1.34397702,3213.0,3212.5,0.00397896]
[1642436148589,1.34397702,3213.0,3212.5,0.78194896]
[1642436148788,1.34397702,3213.0,3212.5,0.00397896]
[1642436148987,1.34397702,3213.0,3212.6,0.00341054]
[1642436149187,1.34397702,3213.0,3212.3,0.00511581]
[1642436149787,6.10943685,3213.4,3212.3,2.4565962]
[1642436149988,6.10943685,3213.4,3212.3,1.67347039]
[1642436150190,6.10943685,3213.4,3212.4,0.00454738]
[1642436150191,9.24493917,3213.4,3212.4,0.00454738]
[1642436150394,6.10943685,3213.4,3212.4,0.00454738]
[1642436150695,9.26811611,3213.4,3212.4,0.00454738]
[1642436150890,6.10943685,3213.4,3212.4,0.00454738]
[1642436152344,6.10943685,3213.4,3212.5,0.77797]
[1642436152544,6.10943685,3213.4,3212.4,0.00454738]
[1642436152745,6.10943685,3213.4,3212.6,0.00341054]
[1642436152949,6.10943685,3213.4,3212.4,0.00454738]
[1642436153348,6.10943685,3213.4,3212.8,1.14870478]
[1642436153548,0.00113685,3213.4,3212.9,0.77785]
[1642436153746,0.00113685,3213.4,3212.9,0.77955527]
[1642436153946,0.00113685,3213.4,3213.0,0.00113684]
[1642436155551,0.00113685,3213.4,3213.0,0.02012113]
[1642436155787,0.00113685,3213.4,3213.0,0.00113684]
[1642436156183,0.00113685,3213.4,3213.0,1.55667684]
[1642436156382,0.00113685,3213.4,3213.2,1.42554798]
[1642436156581,0.00113685,3213.4,3213.3,0.77773]
[1642436157183,0.00113685,3213.4,3213.3,1.93749384]
[1642436161237,2.767995,3213.5,3213.4,6.4]
[1642436161437,2.767995,3213.5,3213.4,1.55514]
[1642436161638,0.03040174,3214.9,3213.5,10.15]
[1642436161840,1.77670539,3215.9,3213.8,0.77754]
[1642436161841,7.77584008,3215.7,3213.8,0.77754]
[1642436162041,0.00341054,3214.0,3213.9,0.373]
[1642436162238,0.00341054,3214.0,3213.9,1.69721106]
[1642436162838,2.96102998,3215.2,3214.0,5.4]
[1642436163041,0.012661,3215.5,3214.3,0.7774]
[1642436163292,0.00682108,3215.2,3214.6,1.38882146]
[1642436163690,0.00625266,3215.1,3214.6,1.38882146]
[1642436163988,10.2537,3215.7,3214.6,1.38882146]
[1642436164187,10.2537,3215.7,3214.7,0.00227369]
[1642436164388,0.00284212,3215.6,3214.7,0.00227369]
[1642436164889,0.00227369,3215.5,3214.6,0.00284212]
[1642436165090,0.00227369,3215.5,3214.4,0.373]
[1642436165290,10.2537,3215.7,3214.4,0.373]
[1642436165291,0.00170527,3215.4,3214.4,0.373]
[1642436165491,0.00170527,3215.4,3215.3,1.29019985]
[1642436165691,4.0651,3215.7,3215.4,0.02098387]
[1642436165892,4.0651,3215.7,3215.3,1.29019985]
[1642436166101,0.00284212,3215.6,3215.3,1.29019985]
[1642436166592,0.00227369,3215.5,3215.3,2.44048985]
[1642436166795,0.00023821,3215.5,3215.3,2.44048985]
[1642436167039,0.00170527,3215.4,3215.3,3.44048985]
[1642436167437,0.00080664,3215.6,3215.3,3.44138848]
[1642436167837,7.45842587,3216.2,3215.3,3.44138848]
[1642436167838,0.00364875,3216.1,3215.3,1.66409848]
[1642436168237,0.00308033,3216.0,3215.3,2.44137848]
[1642436168746,6.1139,3216.2,3215.3,2.44137848]
[1642436168747,0.00251191,3215.9,3215.3,2.44137848]
[1642436168942,0.00251191,3215.9,3215.3,1.15117863]
[1642436169143,0.00194348,3215.8,3215.3,0.00089863]
[1642436169342,0.02177931,3215.8,3215.3,0.00089863]
[1642436169542,0.01209992,3216.1,3214.8,0.00374075]
[1642436169543,0.00137506,3215.7,3214.8,0.00374075]
[1642436169742,1.36577941,3215.6,3214.8,0.00374075]
[1642436169944,0.00080664,3215.6,3215.0,1.2208421]
[1642436170343,1.32626821,3215.8,3215.1,0.00203548]
[1642436170799,1.23196653,3215.9,3215.1,0.00284212]
[1642436171400,1.23196653,3215.9,3214.0,0.1216]
[1642436171401,0.01205395,3215.4,3214.0,0.1216]
[1642436171585,0.01437221,3215.3,3213.5,3.9374]
[1642436171785,4.20173685,3215.3,3214.1,0.00568423]
[1642436172186,4.20173685,3215.3,3213.6,3.5]
[1642436172187,4.20173685,3215.3,3213.7,0.00795793]
[1642436172388,4.20173685,3215.3,3214.2,1.38320182]
[1642436172589,4.20173685,3215.3,3214.2,1.39558966]
[1642436172788,4.1593184,3215.3,3214.3,0.00454739]
[1642436172991,4.1593184,3215.3,3214.3,0.37754739]
[1642436173391,4.1593184,3215.3,3214.5,0.621802]
[1642436173591,4.1593184,3215.3,3214.6,1.46587]
[1642436173793,0.00113685,3215.3,3214.7,0.01224688]
[1642436173996,6.1139,3216.2,3214.8,13.95]
[1642436174194,6.1139,3216.2,3214.9,1.02573685]
[1642436174394,0.00454738,3216.1,3214.9,1.6752737]
[1642436174639,0.00454738,3216.1,3215.0,0.00170527]
[1642436174840,0.00397896,3216.0,3215.8,1.16318454]
[1642436175046,0.00397896,3216.0,3215.8,2.22998454]
[1642436175241,0.00341054,3215.9,3215.8,2.22998454]
[1642436175846,0.00341054,3215.9,3215.8,4.15710454]
[1642436176048,0.0122995,3217.1,3216.1,0.77691]
[1642436176252,4.2148,3217.0,3216.2,0.373]
[1642436176446,0.00341054,3216.5,3216.2,0.373]
[1642436176845,0.00284212,3216.4,3216.2,0.373]
[1642436177047,0.00284212,3216.4,3216.3,2.96416293]
[1642436177248,9.98008058,3217.3,3216.3,4.56416293]